[Event "27th Kavala Open 2018"]
[Site "Kavala"]
[Date "2018.08.07"]
[Round "4"]
[White "Plat, Vojtech"]
[Black "Sandalakis, Angelos"]
[Result "1-0"]
[ECO "A40"]
[WhiteElo "2524"]
[BlackElo "2444"]
[Annotator "RC"]
[PlyCount "77"]
[EventDate "2018.08.06"]
[EventType "swiss"]
[EventCountry "GRE"]
[SourceTitle "playchess.com"]
[Source "ChessBase"]
[SourceQuality "1"]
[TimeControl "40/5400+30:900+30"]

1. d4 {[%emt 0:00:04]} Nf6 {[%emt 0:00:07]} 2. c4 {[%emt 0:00:09]} e6 {[%emt 0:00:08]} 3. g3 {[%emt 0:00:19]} c5 {[%emt 0:00:16]} 4. Nf3 {[%emt 0:00:08]} cxd4 {[%emt 0:00:05]} 5. Nxd4 {[%emt 0:00:04]} d5 {[%emt 0:00:05]} 6. Bg2 {[%emt 0:00:05]} e5 {[%emt 0:00:06]} 7. Nf3 {[%emt 0:00:11]} d4 {[%emt 0:00:08]} 8. O-O {[%emt 0:00:03]} Nc6 {[%emt 0:00:07]} 9. e3 {[%emt 0:00:03]} Be7 {[%emt 0:00:06]} 10. exd4 {[%emt 0:00:04]} exd4 {[%emt 0:00:05]} 11. Bf4 {[%emt 0:00:36]} O-O {[%emt 0:00:25]} 12. Ne5 {[%emt 0:05:22]} Qb6 {[%emt 0:01:45]} 13. Nxc6 {[%emt 0:04:28]} bxc6 {[%emt 0:00:07]} 14. Qb3 {[%emt 0:01:31]} Be6 {[%emt 0:10:03]} 15. Rd1 {[%emt 0:07:44]} Qc5 {[%emt 0:04:57]} 16. Qb7 {[%emt 0:01:17]} Nh5 {[%emt 0:16:26]} 17. Bc7 {[%emt 0:06:07]} Qxc4 {[%emt 0:12:14]} 18. Nd2 {[%emt 0:00:26]} Qb4 {[%emt 0:00:34]} 19. Qxb4 {[%emt 0:01:39]} Bxb4 {[%emt 0:02:39]} 20. a3 {[%emt 0:00:29]} Rac8 {[%emt 0:07:11]} 21. axb4 {[%emt 0:00:30]} Rxc7 {[%emt 0:00:05]} 22. Nf3 {[%emt 0:00:04]} Bd5 {[%emt 0:05:23]} 23. Nxd4 {[%emt 0:00:22]} Nf6 {[%emt 0:04:14]} 24. Rdc1 {[%emt 0:02:46]} Rfc8 {[%emt 0:04:04]} 25. Ra6 {[%emt 0:01:41]} Ne4 {[%emt 0:02:18]} 26. Bxe4 {[%emt 0:07:45]} Bxe4 {[%emt 0:00:04]} 27. f3 {[%emt 0:00:04]} Bd5 {[%emt 0:00:13]} 28. Rc5 {[%emt 0:00:04]} Rd8 {[%emt 0:09:19]} 29. b5 {[%emt 0:00:23]} Be4 {[%emt 0:00:05]} 30. fxe4 {[%emt 0:01:23]} Rxd4 {[%emt 0:00:07]} 31. b6 {[%emt 0:00:02]} Rc8 {[%emt 0:03:09]} 32. bxa7 {[%emt 0:00:55]} Ra8 {[%emt 0:00:05]} 33. Raxc6 {[%emt 0:00:51]} Rdd8 {[%emt 0:00:04]} 34. Rc7 {[%emt 0:00:07]} g6 {[%emt 0:00:15]} 35. b4 {[%emt 0:00:12]} Kg7 {[%emt 0:00:14]} 36. b5 {[%emt 0:01:09]} Rd1+ {[%emt 0:00:07]} 37. Kg2 {[%emt 0:00:05]} Rb1 {[%emt 0:00:06]} 38. Rb7 {[%emt 0:02:00]} Rd8 {[%emt 0:00:26]} 39. Rc2 {[%emt 0:00:30]} 1-0

[Event "27th Kavala Open 2018"]
[Site "Kavala"]
[Date "2018.08.07"]
[Round "4"]
[White "Lin, Chen"]
[Black "Grigoriadis, Alexandros"]
[Result "1-0"]
[ECO "B50"]
[WhiteElo "2506"]
[BlackElo "2211"]
[Annotator "ChessBase"]
[PlyCount "67"]
[EventDate "2018.08.06"]
[EventType "swiss"]
[EventCountry "GRE"]
[SourceTitle "playchess.com"]
[Source "ChessBase"]
[SourceQuality "1"]
[TimeControl "40/5400+30:900+30"]

1. e4 {[%emt 0:00:03]} c5 {[%emt 0:00:52]} 2. Nf3 {[%emt 0:00:10]} d6 {[%emt 0:00:04]} 3. Nc3 {[%emt 0:00:08]} e6 {[%emt 0:00:38]} 4. d4 {[%emt 0:00:17]} cxd4 {[%emt 0:00:05]} 5. Nxd4 {[%emt 0:00:04]} a6 {[%emt 0:00:23]} 6. Bd3 {[%emt 0:01:06]} Nf6 {[%emt 0:00:26]} 7. O-O {[%emt 0:01:11]} Be7 {[%emt 0:00:17]} 8. a4 {[%emt 0:01:59]} Nc6 {[%emt 0:03:05]} 9. Be3 {[%emt 0:00:11]} O-O {[%emt 0:00:36]} 10. f4 {[%emt 0:01:05]} Qc7 {[%emt 0:02:36]} 11. Kh1 {[%emt 0:00:31]} Nxd4 12. Bxd4 {[%emt 0:00:05]} e5 {[%emt 0:04:58]} 13. Be3 {[%emt 0:03:17]} exf4 {[%emt 0:00:37]} 14. Rxf4 {[%emt 0:00:08]} Be6 {[%emt 0:00:33]} 15. Rf1 {[%emt 0:29:45]} Ng4 {[%emt 0:02:49]} 16. Bd4 {[%emt 0:04:40]} Bf6 {[%emt 0:07:56]} 17. Bxf6 {[%emt 0:06:55]} Nxf6 {[%emt 0:00:19]} 18. Rxf6 {[%emt 0:01:11]} gxf6 {[%emt 0:00:06]} 19. Qh5 {[%emt 0:00:03]} Kg7 {[%emt 0:25:23]} 20. e5 {[%emt 0:06:54]} Rh8 {[%emt 0:07:10]} 21. exf6+ {[%emt 0:04:14]} Kxf6 {[%emt 0:00:57]} 22. Qh4+ {[%emt 0:00:34]} Kg7 {[%emt 0:01:33]} 23. Rf1 {[%emt 0:00:11]} Qd8 {[%emt 0:03:17]} 24. Qd4+ {[%emt 0:10:34]} f6 {[%emt 0:02:08]} 25. Ne4 {[%emt 0:00:06]} Rf8 {[%emt 0:00:46]} 26. Ng5 {[%emt 0:04:03]} Bg8 {[%emt 0:03:52]} 27. Nxh7 {[%emt 0:01:18]} Bxh7 {[%emt 0:01:16]} 28. Qg4+ {[%emt 0:00:05]} Kh8 {[%emt 0:03:17]} 29. Bxh7 {[%emt 0:00:12]} Qe7 {[%emt 0:05:39]} 30. Be4 {[%emt 0:00:29]} f5 31. Bxf5 {[%emt 0:00:09]} Rae8 {[%emt 0:05:29]} 32. h3 {[%emt 0:00:50]} Rf7 {[%emt 0:04:30]} 33. Rd1 {[%emt 0:09:10]} Qe5 {[%emt 0:03:56]} 34. Qh5+ {[%emt 0:01:55]} 1-0

[Event "27th Kavala Open 2018"]
[Site "Kavala"]
[Date "2018.08.07"]
[Round "4"]
[White "Bulmaga, Irina"]
[Black "Iskos, Alexandros"]
[Result "1/2-1/2"]
[ECO "B01"]
[WhiteElo "2401"]
[BlackElo "2179"]
[Annotator "NA"]
[PlyCount "85"]
[EventDate "2018.08.06"]
[EventType "swiss"]
[EventCountry "GRE"]
[SourceTitle "playchess.com"]
[Source "ChessBase"]
[SourceQuality "1"]
[TimeControl "40/5400+30:900+30"]

1. e4 {[%emt 0:00:04]} d5 {[%emt 0:00:04]} 2. exd5 {[%emt 0:00:08]} Qxd5 {[%emt 0:00:03]} 3. Nc3 {[%emt 0:00:11]} Qd8 {[%emt 0:00:04]} 4. d4 {[%emt 0:00:26]} Nf6 {[%emt 0:00:02]} 5. Nf3 {[%emt 0:00:17]} Bg4 {[%emt 0:00:31]} 6. h3 {[%emt 0:00:54]} Bxf3 {[%emt 0:00:11]} 7. Qxf3 {[%emt 0:00:09]} c6 {[%emt 0:00:04]} 8. Be3 {[%emt 0:14:11]} e6 {[%emt 0:00:07]} 9. Be2 {[%emt 0:01:28]} Nbd7 {[%emt 0:01:00]} 10. O-O {[%emt 0:02:04]} Bd6 {[%emt 0:01:45]} 11. Ne4 {[%emt 0:11:49]} Nxe4 12. Qxe4 {[%emt 0:00:03]} Nf6 {[%emt 0:01:51]} 13. Qf3 {[%emt 0:00:08]} O-O {[%emt 0:01:19]} 14. Rfd1 {[%emt 0:06:53]} Qc7 {[%emt 0:03:56]} 15. c4 {[%emt 0:07:11]} Rad8 {[%emt 0:23:08]} 16. Bd3 {[%emt 0:03:37]} Rd7 {[%emt 0:05:37]} 17. Rac1 {[%emt 0:05:30]} Qb8 {[%emt 0:00:14]} 18. Bb1 {[%emt 0:06:30]} Rfd8 {[%emt 0:03:32]} 19. g3 {[%emt 0:03:44]} Be7 {[%emt 0:03:09]} 20. Kg2 {[%emt 0:00:39]} Ne8 {[%emt 0:18:51]} 21. Bf4 {[%emt 0:04:22]} Qa8 {[%emt 0:02:28]} 22. d5 {[%emt 0:09:01]} cxd5 {[%emt 0:04:22]} 23. cxd5 {[%emt 0:00:06]} Rxd5 {[%emt 0:00:05]} 24. Be4 {[%emt 0:01:22]} R5d7 {[%emt 0:01:22]} 25. Be5 {[%emt 0:08:16]} a5 {[%emt 0:02:20]} 26. Rxd7 {[%emt 0:01:44]} Rxd7 {[%emt 0:00:03]} 27. Qc3 {[%emt 0:03:22]} Rd8 {[%emt 0:13:24]} 28. Qb3 {[%emt 0:00:28]} Nd6 {[%emt 0:03:58]} 29. Bxd6 {[%emt 0:04:30]} Bxd6 {[%emt 0:00:17]} 30. Bxb7 {[%emt 0:02:37]} Qb8 {[%emt 0:00:43]} 31. Qf3 {[%emt 0:01:29]} g6 {[%emt 0:00:02]} 32. b3 {[%emt 0:01:13]} Bb4 {[%emt 0:02:11]} 33. Rc2 {[%emt 0:01:13]} Qd6 {[%emt 0:00:18]} 34. h4 {[%emt 0:00:48]} h5 {[%emt 0:02:17]} 35. Be4 {[%emt 0:00:28]} Kg7 {[%emt 0:01:24]} 36. Rc6 {[%emt 0:00:24]} Qe5 {[%emt 0:00:43]} 37. Rc2 {[%emt 0:00:19]} Rd2 {[%emt 0:00:59]} 38. Rxd2 {[%emt 0:00:48]} Bxd2 {[%emt 0:00:02]} 39. Qd3 {[%emt 0:00:29]} Bb4 {[%emt 0:01:29]} 40. Bf3 {[%emt 0:00:00]} Qb2 {[%emt 0:00:00]} 41. Qe2 {[%emt 0:01:43]} Qxe2 {[%emt 0:06:11]} 42. Bxe2 {[%emt 0:00:06]} f5 {[%emt 0:01:03]} 43. f4 {[%emt 0:00:55]} 1/2-1/2

[Event "27th Kavala Open 2018"]
[Site "Kavala"]
[Date "2018.08.07"]
[Round "4"]
[White "Gouloutis, Nikolaos"]
[Black "Liodakis, Konstantinos-Spyros"]
[Result "0-1"]
[ECO "E70"]
[WhiteElo "2391"]
[BlackElo "2172"]
[Annotator "NA"]
[PlyCount "82"]
[EventDate "2018.08.06"]
[EventType "swiss"]
[EventCountry "GRE"]
[SourceTitle "playchess.com"]
[Source "ChessBase"]
[SourceQuality "1"]
[TimeControl "40/5400+30:900+30"]

1. d4 {[%emt 0:07:15]} Nf6 {[%emt 0:00:03]} 2. c4 {[%emt 0:00:24]} g6 {[%emt 0:00:12]} 3. Nc3 {[%emt 0:00:05]} Bg7 {[%emt 0:00:03]} 4. e4 {[%emt 0:00:09]} d6 {[%emt 0:00:03]} 5. Bd3 {[%emt 0:01:07]} O-O {[%emt 0:00:25]} 6. Nge2 {[%emt 0:00:06]} e5 {[%emt 0:00:29]} 7. d5 {[%emt 0:00:09]} c6 {[%emt 0:00:50]} 8. O-O {[%emt 0:00:59]} Na6 {[%emt 0:02:44]} 9. Ng3 {[%emt 0:32:28]} h5 {[%emt 0:13:09]} 10. Bg5 {[%emt 0:00:58]} Qc7 {[%emt 0:01:35]} 11. Rc1 {[%emt 0:04:49]} Nh7 {[%emt 0:01:28]} 12. Be3 {[%emt 0:00:05]} h4 {[%emt 0:00:15]} 13. Nh1 {[%emt 0:00:04]} f5 {[%emt 0:05:47]} 14. exf5 {[%emt 0:01:40]} gxf5 {[%emt 0:00:09]} 15. f4 {[%emt 0:00:07]} Nf6 {[%emt 0:05:46]} 16. Nf2 {[%emt 0:07:16]} Qe7 {[%emt 0:13:28]} 17. Be2 {[%emt 0:07:39]} c5 {[%emt 0:06:51]} 18. fxe5 {[%emt 0:10:11]} dxe5 {[%emt 0:06:51]} 19. Bg5 {[%emt 0:00:05]} Qf7 {[%emt 0:04:44]} 20. Nd3 {[%emt 0:03:17]} h3 {[%emt 0:04:25]} 21. Nxe5 {[%emt 0:02:25]} Qe8 {[%emt 0:00:02]} 22. Bf4 {[%emt 0:05:33]} Ng4 {[%emt 0:01:54]} 23. Nf3 {[%emt 0:08:21]} Ne3 {[%emt 0:01:49]} 24. Bxe3 Qxe3+ {[%emt 0:00:04]} 25. Kh1 {[%emt 0:00:20]} Bh6 {[%emt 0:03:55]} 26. Ra1 {[%emt 0:02:06]} hxg2+ {[%emt 0:01:39]} 27. Kxg2 {[%emt 0:00:05]} Qe8 {[%emt 0:02:03]} 28. Bd3 {[%emt 0:02:45]} Kh8 {[%emt 0:02:17]} 29. Qe2 {[%emt 0:00:18]} Be3 {[%emt 0:04:42]} 30. Rae1 {[%emt 0:01:46]} f4 {[%emt 0:00:33]} 31. Ng5 {[%emt 0:00:30]} Nb4 {[%emt 0:05:47]} 32. Bb1 {[%emt 0:00:06]} Bf5 {[%emt 0:01:17]} 33. Bxf5 {[%emt 0:01:29]} Rxf5 {[%emt 0:00:01]} 34. h4 {[%emt 0:00:10]} Qg6 {[%emt 0:00:21]} 35. Rf3 {[%emt 0:02:10]} Nc2 {[%emt 0:00:11]} 36. Rh1 {[%emt 0:00:22]} Nd4 {[%emt 0:00:06]} 37. Qd1 {[%emt 0:00:09]} Re8 {[%emt 0:02:09]} 38. Kh3 {[%emt 0:00:47]} Rxg5 {[%emt 0:00:55]} 39. hxg5 {[%emt 0:00:13]} Qxg5 {[%emt 0:00:03]} 40. Kh2 {[%emt 0:00:00]} Nxf3+ {[%emt 0:00:00]} 41. Qxf3 {[%emt 0:01:02]} Re7 {[%emt 0:00:15]} 0-1

[Event "27th Kavala Open 2018"]
[Site "Kavala"]
[Date "2018.08.07"]
[Round "4"]
[White "Ambartsumova, Karina"]
[Black "Kakushadze, Ilia"]
[Result "1/2-1/2"]
[ECO "B27"]
[WhiteElo "2377"]
[BlackElo "2149"]
[Annotator "NA"]
[PlyCount "55"]
[EventDate "2018.08.06"]
[EventType "swiss"]
[EventCountry "GRE"]
[SourceTitle "playchess.com"]
[Source "ChessBase"]
[SourceQuality "1"]
[TimeControl "40/5400+30:900+30"]

1. e4 {[%emt 0:00:14]} c5 {[%emt 0:00:07]} 2. Nf3 {[%emt 0:00:15]} g6 {[%emt 0:00:13]} 3. d4 {[%emt 0:01:12]} cxd4 {[%emt 0:00:10]} 4. Qxd4 {[%emt 0:01:05]} Nf6 {[%emt 0:00:10]} 5. Nc3 {[%emt 0:01:30]} Nc6 {[%emt 0:00:20]} 6. Qa4 {[%emt 0:00:10]} d6 {[%emt 0:00:23]} 7. e5 {[%emt 0:00:47]} dxe5 {[%emt 0:00:14]} 8. Nxe5 {[%emt 0:00:09]} Bg7 {[%emt 0:00:37]} 9. Bb5 {[%emt 0:05:06]} O-O {[%emt 0:00:10]} 10. Nxc6 {[%emt 0:00:59]} bxc6 {[%emt 0:00:06]} 11. Bxc6 {[%emt 0:00:06]} Bd7 {[%emt 0:00:16]} 12. O-O {[%emt 0:06:34]} Rc8 {[%emt 0:00:33]} 13. Bxd7 Qxd7 {[%emt 0:00:06]} 14. Qa5 {[%emt 0:14:06]} Ng4 {[%emt 0:08:40]} 15. Bf4 {[%emt 0:03:21]} Rc4 {[%emt 0:02:09]} 16. Rad1 {[%emt 0:11:48]} Bxc3 {[%emt 0:07:47]} 17. bxc3 {[%emt 0:12:44]} Qa4 {[%emt 0:02:12]} 18. Qxa4 {[%emt 0:07:14]} Rxa4 {[%emt 0:00:14]} 19. Rd4 {[%emt 0:00:11]} Rxa2 {[%emt 0:04:59]} 20. Bg5 {[%emt 0:00:48]} f6 {[%emt 0:06:54]} 21. Rxg4 {[%emt 0:01:46]} fxg5 {[%emt 0:00:06]} 22. Rxg5 {[%emt 0:04:02]} Rc8 {[%emt 0:14:39]} 23. Re5 {[%emt 0:03:57]} Rc7 {[%emt 0:01:53]} 24. h4 {[%emt 0:02:07]} Rxc2 {[%emt 0:00:25]} 25. Rfe1 {[%emt 0:00:17]} Kf8 {[%emt 0:06:51]} 26. R1e3 {[%emt 0:00:57]} R2xc3 {[%emt 0:00:56]} 27. Rxe7 {[%emt 0:00:20]} a5 {[%emt 0:00:07]} 28. Re8+ {[%emt 0:02:03]} 1/2-1/2

[Event "27th Kavala Open 2018"]
[Site "Kavala"]
[Date "2018.08.07"]
[Round "4"]
[White "Papasimakopoulos, Alexandros"]
[Black "Iljin, Artem"]
[Result "0-1"]
[ECO "D36"]
[WhiteElo "2223"]
[BlackElo "2520"]
[Annotator "ChessBase"]
[PlyCount "82"]
[EventDate "2018.08.06"]
[EventType "swiss"]
[EventCountry "GRE"]
[SourceTitle "playchess.com"]
[Source "ChessBase"]
[SourceQuality "1"]
[TimeControl "40/5400+30:900+30"]

1. d4 {[%emt 0:00:03]} d5 {[%emt 0:01:13]} 2. c4 {[%emt 0:00:05]} e6 {[%emt 0:00:06]} 3. Nc3 {[%emt 0:00:04]} Nf6 {[%emt 0:00:27]} 4. cxd5 {[%emt 0:00:05]} exd5 {[%emt 0:00:14]} 5. Bg5 {[%emt 0:00:05]} c6 {[%emt 0:00:35]} 6. Qc2 {[%emt 0:00:06]} Be7 {[%emt 0:00:28]} 7. e3 {[%emt 0:00:06]} Nbd7 {[%emt 0:00:57]} 8. Bd3 {[%emt 0:00:06]} h6 {[%emt 0:00:28]} 9. Bh4 {[%emt 0:00:06]} Nh5 {[%emt 0:00:17]} 10. Bxe7 {[%emt 0:00:05]} Qxe7 {[%emt 0:00:04]} 11. Nge2 {[%emt 0:00:06]} Nb6 {[%emt 0:00:38]} 12. O-O-O {[%emt 0:00:07]} Be6 {[%emt 0:01:10]} 13. Na4 {[%emt 0:00:05]} Nxa4 {[%emt 0:07:13]} 14. Qxa4 {[%emt 0:00:03]} Bg4 {[%emt 0:03:17]} 15. Rhe1 {[%emt 0:08:44]} O-O {[%emt 0:02:55]} 16. Kb1 {[%emt 0:00:51]} Rfe8 {[%emt 0:28:55]} 17. Qc2 {[%emt 0:03:48]} Bxe2 {[%emt 0:04:47]} 18. Rxe2 {[%emt 0:00:18]} Qh4 {[%emt 0:03:09]} 19. f3 {[%emt 0:03:59]} Nf6 {[%emt 0:05:20]} 20. g3 {[%emt 0:02:36]} Qh5 {[%emt 0:01:19]} 21. Rf1 {[%emt 0:04:52]} Rad8 {[%emt 0:01:32]} 22. Ree1 {[%emt 0:00:01]} Rd7 {[%emt 0:05:20]} 23. Qf2 {[%emt 0:03:19]} Nh7 {[%emt 0:07:22]} 24. h4 {[%emt 0:06:46]} f6 {[%emt 0:05:00]} 25. g4 {[%emt 0:03:19]} Qf7 {[%emt 0:00:04]} 26. Qc2 {[%emt 0:01:11]} Nf8 {[%emt 0:00:31]} 27. h5 {[%emt 0:00:18]} Rde7 {[%emt 0:01:05]} 28. Qd2 {[%emt 0:05:41]} Qe6 {[%emt 0:00:52]} 29. Bc2 {[%emt 0:01:05]} Qd6 {[%emt 0:01:13]} 30. Rg1 {[%emt 0:03:54]} Ne6 {[%emt 0:05:48]} 31. f4 {[%emt 0:00:17]} Nf8 {[%emt 0:03:21]} 32. Rg3 {[%emt 0:03:40]} Nd7 {[%emt 0:04:55]} 33. Reg1 {[%emt 0:02:01]} Rf8 {[%emt 0:00:32]} 34. Qd3 {[%emt 0:01:36]} Re4 {[%emt 0:01:53]} 35. Qf1 {[%emt 0:06:25]} Re7 {[%emt 0:00:36]} 36. Qh3 {[%emt 0:00:11]} c5 {[%emt 0:02:22]} 37. g5 {[%emt 0:00:05]} fxg5 {[%emt 0:00:17]} 38. fxg5 {[%emt 0:00:02]} cxd4 {[%emt 0:00:20]} 39. exd4 {[%emt 0:01:24]} Rf2 {[%emt 0:00:58]} 40. gxh6 {[%emt 0:00:00]} Qxh6 {[%emt 0:00:00]} 41. Rg5 {[%emt 0:04:22]} Qxg5 {[%emt 0:01:36]} 0-1

[Event "27th Kavala Open 2018"]
[Site "Kavala"]
[Date "2018.08.07"]
[Round "4"]
[White "Papadopoulos, Panayotis"]
[Black "Kourkoulos-Arditis, Stamatis"]
[Result "0-1"]
[ECO "A15"]
[WhiteElo "2191"]
[BlackElo "2433"]
[Annotator "NA"]
[PlyCount "92"]
[EventDate "2018.08.06"]
[EventType "swiss"]
[EventCountry "GRE"]
[SourceTitle "playchess.com"]
[Source "ChessBase"]
[SourceQuality "1"]
[TimeControl "40/5400+30:900+30"]

1. c4 {[%emt 0:06:36]} Nf6 {[%emt 0:00:46]} 2. g3 {[%emt 0:00:04]} e5 {[%emt 0:00:23]} 3. Bg2 {[%emt 0:00:07]} d5 {[%emt 0:00:04]} 4. cxd5 {[%emt 0:00:04]} Nxd5 {[%emt 0:00:03]} 5. Nc3 {[%emt 0:00:07]} Nb6 {[%emt 0:00:03]} 6. a4 {[%emt 0:01:35]} a5 {[%emt 0:06:41]} 7. Nf3 {[%emt 0:01:22]} Nc6 {[%emt 0:00:04]} 8. O-O {[%emt 0:00:51]} Be7 {[%emt 0:02:09]} 9. d4 {[%emt 0:03:10]} exd4 {[%emt 0:04:08]} 10. Nb5 {[%emt 0:00:11]} Bf6 {[%emt 0:00:05]} 11. Bf4 {[%emt 0:01:45]} Nd5 {[%emt 0:20:41]} 12. Nfxd4 {[%emt 0:00:06]} Nxf4 {[%emt 0:03:41]} 13. Nxc6 {[%emt 0:06:29]} Qxd1 {[%emt 0:00:08]} 14. Rfxd1 {[%emt 0:08:22]} Ne6 {[%emt 0:00:20]} 15. Ncd4 {[%emt 0:04:20]} Bxd4 {[%emt 0:00:22]} 16. Nxd4 {[%emt 0:02:44]} Nxd4 {[%emt 0:00:10]} 17. Rxd4 {[%emt 0:00:04]} Ke7 {[%emt 0:00:05]} 18. Re4+ {[%emt 0:08:46]} Be6 {[%emt 0:00:25]} 19. b4 {[%emt 0:03:40]} Rhd8 {[%emt 0:08:48]} 20. bxa5 {[%emt 0:21:42]} Rxa5 {[%emt 0:00:25]} 21. Rb4 {[%emt 0:01:32]} b6 {[%emt 0:00:07]} 22. Rc1 {[%emt 0:00:12]} Rc5 {[%emt 0:00:41]} 23. Rcb1 {[%emt 0:04:01]} Rd2 {[%emt 0:01:26]} 24. Bf3 {[%emt 0:02:25]} Ra2 {[%emt 0:04:38]} 25. h4 {[%emt 0:05:39]} Rc4 {[%emt 0:03:56]} 26. Rxc4 {[%emt 0:03:46]} Bxc4 {[%emt 0:00:04]} 27. Rb4 {[%emt 0:00:05]} Be6 {[%emt 0:00:04]} 28. Bg4 {[%emt 0:09:08]} f5 {[%emt 0:01:10]} 29. Bf3 {[%emt 0:00:23]} Bd7 {[%emt 0:00:30]} 30. e4 {[%emt 0:01:18]} Rxa4 {[%emt 0:01:03]} 31. Rxa4 {[%emt 0:00:08]} Bxa4 {[%emt 0:00:04]} 32. exf5 {[%emt 0:00:05]} Bc2 {[%emt 0:00:06]} 33. g4 {[%emt 0:01:12]} Bd3 {[%emt 0:00:04]} 34. Bg2 {[%emt 0:02:53]} Kf6 {[%emt 0:03:54]} 35. f3 {[%emt 0:01:59]} Ke5 {[%emt 0:00:15]} 36. Bf1 {[%emt 0:00:16]} Bxf1 {[%emt 0:00:11]} 37. Kxf1 {[%emt 0:00:04]} h5 {[%emt 0:00:02]} 38. Ke2 {[%emt 0:00:14]} Kf4 {[%emt 0:00:06]} 39. f6 {[%emt 0:00:18]} gxf6 {[%emt 0:00:04]} 40. gxh5 {[%emt 0:00:00]} Kf5 {[%emt 0:00:00]} 41. Kd3 {[%emt 0:06:16]} b5 {[%emt 0:00:09]} 42. Kd4 {[%emt 0:00:28]} b4 {[%emt 0:00:11]} 43. Kc4 {[%emt 0:02:44]} c5 {[%emt 0:00:12]} 44. f4 {[%emt 0:00:10]} Ke6 {[%emt 0:00:04]} 45. h6 {[%emt 0:00:35]} Kf7 {[%emt 0:00:02]} 46. f5 {[%emt 0:00:22]} Kg8 {[%emt 0:00:03]} 0-1

[Event "27th Kavala Open 2018"]
[Site "Kavala"]
[Date "2018.08.07"]
[Round "4"]
[White "Dorfanis, Ilarion"]
[Black "Danielian, Elina"]
[Result "0-1"]
[ECO "A30"]
[WhiteElo "2183"]
[BlackElo "2419"]
[Annotator "NA"]
[PlyCount "98"]
[EventDate "2018.08.06"]
[EventType "swiss"]
[EventCountry "GRE"]
[SourceTitle "playchess.com"]
[Source "ChessBase"]
[SourceQuality "1"]
[TimeControl "40/5400+30:900+30"]

1. Nf3 {[%emt 0:02:11]} e6 {[%emt 0:00:11]} 2. c4 {[%emt 0:00:39]} Nf6 {[%emt 0:00:40]} 3. Nc3 {[%emt 0:00:50]} c5 {[%emt 0:00:24]} 4. g3 {[%emt 0:02:01]} b6 {[%emt 0:00:58]} 5. Bg2 {[%emt 0:00:06]} Bb7 {[%emt 0:00:05]} 6. O-O {[%emt 0:00:14]} Be7 {[%emt 0:00:15]} 7. d4 {[%emt 0:03:18]} cxd4 {[%emt 0:00:07]} 8. Qxd4 {[%emt 0:00:07]} Nc6 {[%emt 0:01:34]} 9. Qd1 {[%emt 0:08:49]} O-O {[%emt 0:00:34]} 10. Bf4 {[%emt 0:07:12]} d6 {[%emt 0:07:47]} 11. Rc1 {[%emt 0:03:26]} Rc8 {[%emt 0:00:49]} 12. Nb5 {[%emt 0:18:45]} d5 {[%emt 0:10:08]} 13. Nfd4 {[%emt 0:22:41]} Nxd4 {[%emt 0:03:08]} 14. Nxd4 {[%emt 0:01:07]} Qd7 {[%emt 0:03:10]} 15. cxd5 {[%emt 0:07:26]} Rxc1 {[%emt 0:05:10]} 16. Bxc1 {[%emt 0:00:59]} Bxd5 {[%emt 0:00:41]} 17. Bxd5 {[%emt 0:02:48]} Qxd5 {[%emt 0:00:16]} 18. Qa4 {[%emt 0:01:32]} Bc5 {[%emt 0:09:10]} 19. Nb3 {[%emt 0:01:00]} b5 {[%emt 0:02:18]} 20. Qf4 {[%emt 0:00:30]} Bb6 {[%emt 0:14:22]} 21. Bd2 {[%emt 0:02:39]} Rd8 {[%emt 0:16:14]} 22. Qf3 {[%emt 0:02:39]} Ne4 {[%emt 0:01:42]} 23. Be3 {[%emt 0:01:09]} h5 {[%emt 0:05:49]} 24. Bxb6 {[%emt 0:01:25]} axb6 {[%emt 0:00:03]} 25. h4 {[%emt 0:01:40]} b4 {[%emt 0:02:47]} 26. Rc1 {[%emt 0:03:26]} Ra8 {[%emt 0:01:25]} 27. Ra1 {[%emt 0:02:15]} g6 {[%emt 0:01:57]} 28. Kg2 {[%emt 0:00:30]} Kg7 {[%emt 0:01:29]} 29. e3 {[%emt 0:02:30]} Ra7 {[%emt 0:03:41]} 30. Rd1 {[%emt 0:00:21]} Qe5 {[%emt 0:01:46]} 31. Rd4 {[%emt 0:00:08]} Nf6 {[%emt 0:00:22]} 32. Nc1 {[%emt 0:00:32]} Qc7 {[%emt 0:01:02]} 33. Nd3 {[%emt 0:00:49]} e5 {[%emt 0:00:35]} 34. Rxb4 {[%emt 0:00:40]} Qd6 {[%emt 0:00:36]} 35. e4 {[%emt 0:00:26]} Rxa2 {[%emt 0:00:30]} 36. Rb5 {[%emt 0:00:34]} Ng4 {[%emt 0:04:42]} 37. Rd5 {[%emt 0:00:27]} Qc7 {[%emt 0:00:04]} 38. Qe2 {[%emt 0:00:33]} Qc4 {[%emt 0:01:55]} 39. f3 {[%emt 0:00:32]} Nf6 {[%emt 0:00:05]} 40. Rxe5 {[%emt 0:00:00]} Ra1 {[%emt 0:00:00]} 41. Rg5 {[%emt 0:08:19]} Nd7 {[%emt 0:10:52]} 42. Qd2 {[%emt 0:04:46]} Nc5 {[%emt 0:04:47]} 43. Ne1 {[%emt 0:03:53]} Nb3 {[%emt 0:01:38]} 44. Qe3 {[%emt 0:00:32]} Rb1 {[%emt 0:00:30]} 45. Rd5 {[%emt 0:00:31]} Rxb2+ {[%emt 0:00:09]} 46. Kg1 {[%emt 0:00:26]} Re2 {[%emt 0:00:11]} 47. Qd3 {[%emt 0:00:34]} Rxe1+ {[%emt 0:00:15]} 48. Kf2 {[%emt 0:00:05]} Qxd3 {[%emt 0:00:38]} 49. Rxd3 {[%emt 0:00:02]} Rb1 {[%emt 0:00:23]} 0-1

[Event "27th Kavala Open 2018"]
[Site "Kavala"]
[Date "2018.08.07"]
[Round "4"]
[White "Loutragotis, Dimitrios"]
[Black "Prince, Bajaj"]
[Result "1/2-1/2"]
[ECO "B47"]
[WhiteElo "2169"]
[BlackElo "2411"]
[Annotator "NA"]
[PlyCount "24"]
[EventDate "2018.08.06"]
[EventType "swiss"]
[EventCountry "GRE"]
[SourceTitle "playchess.com"]
[Source "ChessBase"]
[SourceQuality "1"]
[TimeControl "40/5400+30:900+30"]

1. e4 {[%emt 0:00:03]} c5 {[%emt 0:00:28]} 2. Nf3 {[%emt 0:00:10]} e6 {[%emt 0:00:03]} 3. d4 {[%emt 0:00:07]} cxd4 {[%emt 0:00:04]} 4. Nxd4 {[%emt 0:00:05]} Nc6 {[%emt 0:00:02]} 5. Nc3 {[%emt 0:00:13]} Qc7 {[%emt 0:00:03]} 6. Be2 {[%emt 0:00:07]} Nf6 {[%emt 0:00:03]} 7. O-O {[%emt 0:00:43]} a6 {[%emt 0:00:04]} 8. Be3 {[%emt 0:00:10]} Bb4 {[%emt 0:00:03]} 9. Nxc6 {[%emt 0:00:47]} bxc6 {[%emt 0:00:47]} 10. f4 {[%emt 0:00:31]} d5 {[%emt 0:14:57]} 11. e5 {[%emt 0:06:01]} Nd7 {[%emt 0:03:10]} 12. Na4 {[%emt 0:04:03]} Be7 {[%emt 0:33:03]} 1/2-1/2